{"text_format":"3","workbook":"xlsx","n_sheets":3,"sheets":["Explications A LIRE","1- Tableau financier adapté","2- Tableau financier CompteAsso"],"read":"whole","date_system":"1900"}

{"sheet":"Explications A LIRE","index":0,"n_rows":15,"n_cols":1,"rows_kept":15,"merged":[[0,0,1,10],[3,0,3,10],[4,0,4,10],[6,0,6,10],[7,0,7,10],[8,0,8,10],[9,0,9,10],[10,0,10,10],[11,0,11,10],[12,0,13,10],[14,0,14,10]]}
["Instructions importantes avant d'utiliser ce document"]
[]
[]
["Certains d'entre vous ont rencontré des difficultés pour formaliser les éléments budgétaires liés à leur projet."]
["Aussi, nous avons cherché à simplifier la compréhension et la présentation de ces éléments financiers."]
[]
["L'onglet n°1 \"Bilan financier adapté\" a été établi en fonction des spécificités liées à nos activités"]
["L'onglet n°2 \"Bilan financier CompteAsso\" correspond à une forme réglementaire, classique pour tous dossiers de subvention."]
["Ces deux onglets \"communiquent\" entre eux, ils sont liés ; aussi, vous ne pouvez pas modifier manuellement l'onglet 2."]
[]
["Vous avez ainsi deux possibilités pour remplir votre budget de demande de subvention et/ou votre bilan financier "]
["* remplir le tableau financier directement dans Le Compte Asso"]
["* OU utiliser ce classeur excel en remplissant l'onglet 1 \"Bilan financier adapté\" → L'onglet 2 \"Bilan financier CompteAsso\" va alors automatiquement se remplir et vous pourrez recopier les données de l'onglet 2 dans votre demande de subvention et/ou bilan sur le Compte Asso"]
[]
["NB : pensez bien à vérifier que les montants totaux  sont identiques dans chacun des deux onglets"]

{"sheet":"1- Tableau financier adapté","index":1,"n_rows":37,"n_cols":8,"rows_kept":37,"merged":[[0,0,0,7],[1,0,1,7],[3,0,3,3],[3,4,3,7],[28,0,28,7],[36,0,36,7]]}
["Bilan financier de l'action"]
["Exercice du ../../… au ../../…."]
[]
["DEPENSES / CHARGES",{"$nulls":3},"RECETTES / PRODUITS "]
[null,"Prévision\nMontant en €","Réalisation\nMontant en €","%",null,"Prévision\nMontant en €","Réalisation\nMontant en €","%"]
["Achat matériels sportifs/pédagogiques",null,null,{"$f":"C6/B6*100","v":{"$error":"#DIV/0!"}},"Cotisations / Licences, dont part assurances\n(si spécifiques au projet)",null,null,{"$f":"G6/F6*100","v":{"$error":"#DIV/0!"}}]
["Achat matières premières buvette",null,null,{"$f":"C7/B7*100","v":{"$error":"#DIV/0!"}},"Recettes liées au projet (participations familles, inscriptions, …)",null,null,{"$f":"G7/F7*100","v":{"$error":"#DIV/0!"}}]
["Achat matériel d'entretien / réparations",null,null,{"$f":"C8/B8*100","v":{"$error":"#DIV/0!"}},"Sponsoring / lié au projet",null,null,{"$error":"#DIV/0!"}]
["Achat tenues",null,null,{"$error":"#DIV/0!"},"Don - mécénat / lié au projet",null,null,{"$error":"#DIV/0!"}]
["Location salles, locaux, stade",null,null,{"$error":"#DIV/0!"},"Buvette et restauration",null,null,{"$error":"#DIV/0!"}]
["Location matériel",null,null,{"$error":"#DIV/0!"},"Vente de produits dérivés",null,null,{"$error":"#DIV/0!"}]
["Hébergement",null,null,{"$error":"#DIV/0!"},"Subventions région(s)\n(dédiées pour l'action)",null,null,{"$error":"#DIV/0!"}]
["Restauration et frais de réception",null,null,{"$error":"#DIV/0!"},"Subventions département(s)\n(dédiées pour l'action)",null,null,{"$error":"#DIV/0!"}]
["Déplacements / frais kilométriques ",null,null,{"$error":"#DIV/0!"},"Subventions Comcom/EPCI \n(dédiées pour l'action)",null,null,{"$error":"#DIV/0!"}]
["Inscription formations encadrants, dirigeants, arbitres",null,null,{"$error":"#DIV/0!"},"Subventions commune(s)/mairie(s) (dédiées pour l'action)",null,null,{"$error":"#DIV/0!"}]
["Insription formations autre",null,null,{"$error":"#DIV/0!"},"Subvention ANS/PSF",null,null,{"$error":"#DIV/0!"}]
["Communication",null,null,{"$error":"#DIV/0!"},"Subvention Emploi",null,null,{"$error":"#DIV/0!"}]
["Impressions / Documentation",null,null,{"$error":"#DIV/0!"},"Organismes sociaux (CAF, etc.)",null,null,{"$error":"#DIV/0!"}]
["Cotisations / adhésions (dont part assurance des titres vendus pour le projet)",null,null,{"$f":"C19/B19*100","v":{"$error":"#DIV/0!"}},"Fonds européens",null,null,{"$error":"#DIV/0!"}]
["Assurances (spécifique au projet)",null,null,{"$error":"#DIV/0!"},"ASP (Emplois aidés)",null,null,{"$error":"#DIV/0!"}]
["Accompagnement prestataire hors sportif (freelance, informatique, graphisme, …)",null,null,{"$f":"C21/B21*100","v":{"$error":"#DIV/0!"}},"Autres établissements publics ",null,null,{"$error":"#DIV/0!"}]
["Accompagnement prestataire sportif (intervenant extérieur, mise à disposition d'éducateur…)",null,null,{"$f":"C22/B22*100","v":{"$error":"#DIV/0!"}},"Autres recettes diverses / produits exceptionnels",null,null,{"$f":"G22/F22*100","v":{"$error":"#DIV/0!"}}]
["Salaire (si salarié·e) au ratio du temps passé sur le projet",null,null,{"$error":"#DIV/0!"},"Contrat Territorial Individualisé",null,null,{"$f":"G23/F23*100","v":{"$error":"#DIV/0!"}}]
["Charges sociales (si salarié·e)",null,null,{"$error":"#DIV/0!"},"Ressources propres (fonds de l'association dédiés à ce projet)",null,null,{"$f":"G24/F24*100","v":{"$error":"#DIV/0!"}}]
["Impôts et taxes (spécifiques au projet)",null,null,{"$error":"#DIV/0!"}]
["Autres dépenses ",null,null,{"$error":"#DIV/0!"}]
["Charges indirectes (charges fixes du club réparties au prorata pour le projet)",null,null,{"$error":"#DIV/0!"}]
["TOTAL des charges",{"$f":"SUM(B6:B27)","v":0},{"$f":"SUM(C6:C27)","v":0},{"$error":"#DIV/0!"},"TOTAL des produits",{"$f":"SUM(F6:F24)","v":0},{"$f":"SUM(G6:G24)+G24","v":0},{"$f":"G28/F28*100","v":{"$error":"#DIV/0!"}}]
["Valorisations - contributions volontaires en nature \n(n'inscrire ci-dessous que des valorisations, qui doivent être équilibrées en dépenses et recettes)"]
["Secours et sécurité",null,null,{"$f":"C30/B30*100","v":{"$error":"#DIV/0!"}},"Bénévolat",null,null,{"$f":"G30/F30*100","v":{"$error":"#DIV/0!"}}]
["Mise à disposition gratuite \n(biens & services)",null,null,{"$f":"C31/B31*100","v":{"$error":"#DIV/0!"}},"Prestations en nature",null,null,{"$f":"G31/F31*100","v":{"$error":"#DIV/0!"}}]
["Prestations",null,null,{"$error":"#DIV/0!"},"Dons en nature",null,null,{"$error":"#DIV/0!"}]
["Personnel bénévole",null,null,{"$error":"#DIV/0!"}]
["TOTAL valorisations",{"$f":"SUM(B30:B33)","v":0},{"$f":"SUM(C30:C33)","v":0},{"$error":"#DIV/0!"},"TOTAL valorisations",{"$f":"SUM(F30:F32)","v":0},{"$f":"SUM(G30:G32)","v":0},{"$f":"G34/F34*100","v":{"$error":"#DIV/0!"}}]
[]
[]
["La subvention de ….. € représente …….% du total des produits du projet."]

{"sheet":"2- Tableau financier CompteAsso","index":2,"n_rows":46,"n_cols":16,"rows_kept":46,"merged":[[0,0,0,7],[4,0,4,3],[4,4,4,7],[4,10,4,18],[5,10,5,13],[5,15,5,18],[6,10,6,13],[6,15,6,18],[7,10,7,13],[7,15,7,18],[8,10,8,13],[8,15,8,18],[9,8,17,8],[9,10,9,13],[9,15,9,18],[10,10,10,13],[10,15,10,18],[11,10,11,13],[11,15,11,18],[12,10,12,13],[12,15,12,18],[14,10,14,18],[15,10,15,13],[15,15,15,18],[16,10,16,13],[16,15,16,18],[17,10,17,13],[17,15,17,18],[34,0,34,3],[34,4,34,7],[39,0,39,7],[39,8,39,12],[46,0,46,7]]}
["2. Tableau de synthèse"]
[]
[]
["DEPENSES / CHARGES","Prévision\nMontant en €","Réalisation\nMontant en €","%","RECETTES / PRODUITS ","Prévision\nMontant en €","Réalisation\nMontant en €","%"]
["CHARGES DIRECTES AFFECTEES A L'ACTION",{"$nulls":3},"RESSOURCES DIRECTES AFFECTEES A L'ACTION",{"$nulls":5},"Dépenses/Charges"]
["60- Achats",{"$f":"SUM(B7:B8)","v":0},{"$f":"SUM(C7:C8)","v":0},{"$f":"C6/B6*100","v":{"$error":"#DIV/0!"}},"70 - Vente de produits finis, de prestations de services",{"$f":"'1- Tableau financier adapté'!F10+'1- Tableau financier adapté'!F11","v":0},{"$f":"'1- Tableau financier adapté'!G10+'1- Tableau financier adapté'!G11","v":0},{"$f":"G6/F6*100","v":{"$error":"#DIV/0!"}},null,null,"Achat matières et fournitures : Achat matériels sportifs/pédagogiques + Achat tenues",{"$nulls":4},"Services bancaires, autres : Inscriptions formations encadrants, dirigeants, arbitres + Insription formations autre"]
["Achat matières et fournitures",{"$f":"'1- Tableau financier adapté'!B6+'1- Tableau financier adapté'!B9","v":0},{"$f":"'1- Tableau financier adapté'!C6+'1- Tableau financier adapté'!C9","v":0},{"$f":"C7/B7*100","v":{"$error":"#DIV/0!"}},"73 - Dotations et produits de tarification",null,null,{"$f":"G7/F7*100","v":{"$error":"#DIV/0!"}},null,null,"Autres fournitures : Achat matières premières buvette",{"$nulls":4},"Autres impôts et taxes : Impôts et taxes (spécifiques au projet)"]
["Autres fournitures",{"$f":"'1- Tableau financier adapté'!B7","v":0},{"$f":"'1- Tableau financier adapté'!C7","v":0},{"$f":"C8/B8*100","v":{"$error":"#DIV/0!"}},"74 – Subventions d’exploitation",{"$f":"SUM(F9:F27)","v":0},{"$f":"SUM(G9:G27)","v":0},{"$f":"G8/F8*100","v":{"$error":"#DIV/0!"}},null,null,"Locations : Location salles, locaux, stade + Location matériel",{"$nulls":4},"Rémunération des personnels : Salaires au ratio du temps passé sur le projet"]
[{"$nulls":4},"Fédération - Etat - ANS/PSF",{"$f":"'1- Tableau financier adapté'!F16","v":0},{"$f":"'1- Tableau financier adapté'!G16","v":0},{"$f":"G9/F9*100","v":{"$error":"#DIV/0!"}},null,null,"Entretien et réparation : Achat matériel d'entretien / réparations",{"$nulls":4},"Charges sociales : Charges sociales (si salarié·e)"]
[{"$nulls":4},"Etat - Emploi",{"$f":"'1- Tableau financier adapté'!F17","v":0},{"$f":"'1- Tableau financier adapté'!G17","v":0},{"$error":"#DIV/0!"},"Sur le Compte Asso, cliquer sur \"Ajouter un cofinancement\"",null,"Assurance : assurances (part liée au projet)",{"$nulls":4},"Autres charges de gestion courante : Cotisations / adhésions (dont part assurance des titres vendus pour le projet)"]
["61- Services extérieurs",{"$f":"SUM(B12:B15)","v":0},{"$f":"SUM(C12:C15)","v":0},{"$f":"C11/B11*100","v":{"$error":"#DIV/0!"}},"Conseil régional",{"$f":"'1- Tableau financier adapté'!F12","v":0},{"$f":"'1- Tableau financier adapté'!G12","v":0},{"$f":"G11/F11*100","v":{"$error":"#DIV/0!"}},null,null,"Rémunération intermédiaires et honoraires : Accompagnement prestataire hors sportif (freelance, informatique, graphisme, …) + Accompagnement prestataire sportif (intervenant extérieur, mise à disposition d'éducateur…)",{"$nulls":4},"Charges exceptionnelles : Autres dépenses"]
["Locations ",{"$f":"'1- Tableau financier adapté'!B10+'1- Tableau financier adapté'!B11","v":0},{"$f":"'1- Tableau financier adapté'!C10+'1- Tableau financier adapté'!C11","v":0},{"$f":"C12/B12*100","v":{"$error":"#DIV/0!"}},"Conseil départemental",{"$f":"'1- Tableau financier adapté'!F13","v":0},{"$f":"'1- Tableau financier adapté'!G13","v":0},{"$f":"G12/F12*100","v":{"$error":"#DIV/0!"}},null,null,"Publicité, publication : Impressions / Documentation + Communication",{"$nulls":4},"Charges fixes de fonctionnement : Charges indirectes (charges fixes du club réparties au prorata pour le projet)"]
["Entretien et réparation",{"$f":"'1- Tableau financier adapté'!B8","v":0},{"$f":"'1- Tableau financier adapté'!C8","v":0},{"$error":"#DIV/0!"},"Intercommunalité(s)",{"$f":"'1- Tableau financier adapté'!F14","v":0},{"$f":"'1- Tableau financier adapté'!G14","v":0},{"$f":"G13/F13*100","v":{"$error":"#DIV/0!"}},null,null,"Déplacements, missions : Hébergement + Restauration et frais de réception + Déplacements / frais kilométriques"]
["Assurance",{"$f":"'1- Tableau financier adapté'!B20","v":0},{"$f":"'1- Tableau financier adapté'!C20","v":0},{"$error":"#DIV/0!"},"Commune(s)",{"$f":"'1- Tableau financier adapté'!F15","v":0},{"$f":"'1- Tableau financier adapté'!G15","v":0},{"$f":"G14/F14*100","v":{"$error":"#DIV/0!"}}]
["Documentation",{"$nulls":3},"ASP (Emplois aidés)",{"$f":"'1- Tableau financier adapté'!F20","v":0},{"$f":"'1- Tableau financier adapté'!G20","v":0},{"$f":"G15/F15*100","v":{"$error":"#DIV/0!"}},null,null,"Recettes/Produits"]
[{"$nulls":4},"Organismes sociaux (CAF, etc.)",{"$f":"'1- Tableau financier adapté'!F18","v":0},{"$f":"'1- Tableau financier adapté'!G18","v":0},{"$error":"#DIV/0!"},null,null,"Vente de produits finis, de prestations de services : Buvette et restauration + Vente de produits dérivés",{"$nulls":4},"Aides privées : Sponsoring (part liée au projet)"]
["62 – Autres services extérieurs",{"$f":"SUM(B18:B21)","v":0},{"$f":"SUM(C18:C21)","v":0},{"$f":"C17/B17*100","v":{"$error":"#DIV/0!"}},"Fonds européens",{"$f":"'1- Tableau financier adapté'!F19","v":0},{"$f":"'1- Tableau financier adapté'!G19","v":0},{"$error":"#DIV/0!"},null,null,"Cotisations : Cotisations / Licences, dont part assurances, liées au projet + Recettes liées au projet (participations familles, inscriptions, …)",{"$nulls":4},"Produits exceptionnels : Autres recettes diverses / produits exceptionnels"]
["Rémunération intermédiaires et honoraires",{"$f":"'1- Tableau financier adapté'!B21+'1- Tableau financier adapté'!B22","v":0},{"$f":"'1- Tableau financier adapté'!C21+'1- Tableau financier adapté'!C22","v":0},{"$f":"C18/B18*100","v":{"$error":"#DIV/0!"}},"Autres établissements publics ",{"$f":"'1- Tableau financier adapté'!F21","v":0},{"$f":"'1- Tableau financier adapté'!G21","v":0},{"$error":"#DIV/0!"},null,null,"Dons manuels, mécénat : Don - mécénat lié au projet",{"$nulls":4},"Subventions"]
["Publicité, publication",{"$f":"'1- Tableau financier adapté'!B17+'1- Tableau financier adapté'!B18","v":0},{"$f":"'1- Tableau financier adapté'!C17+'1- Tableau financier adapté'!C18","v":0},{"$error":"#DIV/0!"}]
["Déplacements, missions ",{"$f":"'1- Tableau financier adapté'!B12+'1- Tableau financier adapté'!B13+'1- Tableau financier adapté'!B14","v":0},{"$f":"'1- Tableau financier adapté'!C12+'1- Tableau financier adapté'!C13+'1- Tableau financier adapté'!C14","v":0},{"$error":"#DIV/0!"},"Aides privées ",{"$f":"'1- Tableau financier adapté'!F8","v":0},{"$f":"'1- Tableau financier adapté'!G8","v":0},{"$f":"G20/F20*100","v":{"$error":"#DIV/0!"}}]
["Services bancaires, autres",{"$f":"'1- Tableau financier adapté'!B15+'1- Tableau financier adapté'!B16","v":0},{"$f":"'1- Tableau financier adapté'!C15+'1- Tableau financier adapté'!C16","v":0},{"$error":"#DIV/0!"}]
["63 - Impôts et taxes",{"$f":"SUM(B23:B24)","v":0},{"$f":"SUM(C23:C24)","v":0},{"$f":"C22/B22*100","v":{"$error":"#DIV/0!"}}]
["Impôts et taxes sur rémunération"]
["Autres impôts et taxes",{"$f":"'1- Tableau financier adapté'!B25","v":0},{"$f":"'1- Tableau financier adapté'!C25","v":0},{"$f":"C24/B24*100","v":{"$error":"#DIV/0!"}}]
["64 - Charges de personnel",{"$f":"SUM(B26:B28)","v":0},{"$f":"SUM(C26:C28)","v":0},{"$f":"C25/B25*100","v":{"$error":"#DIV/0!"}}]
["Rémunération des personnels",{"$f":"'1- Tableau financier adapté'!B23","v":0},{"$f":"'1- Tableau financier adapté'!C23","v":0},{"$f":"C26/B26*100","v":{"$error":"#DIV/0!"}}]
["Charges sociales",{"$f":"'1- Tableau financier adapté'!B24","v":0},{"$f":"'1- Tableau financier adapté'!C24","v":0},{"$error":"#DIV/0!"}]
["Autres charges de personnel"]
["65 - Autres charges de gestion courante",{"$f":"'1- Tableau financier adapté'!B19","v":0},{"$f":"'1- Tableau financier adapté'!C19","v":0},{"$error":"#DIV/0!"},"75 – Autres produits de gestion courante",{"$f":"SUM(F30:F31)","v":0},{"$f":"SUM(G30:G31)","v":0},{"$f":"G29/F29*100","v":{"$error":"#DIV/0!"}}]
[{"$nulls":4},"Cotisations",{"$f":"'1- Tableau financier adapté'!F6+'1- Tableau financier adapté'!F23+'1- Tableau financier adapté'!F7","v":0},{"$f":"'1- Tableau financier adapté'!G6+'1- Tableau financier adapté'!G7+'1- Tableau financier adapté'!G23","v":0},{"$f":"G30/F30*100","v":{"$error":"#DIV/0!"}}]
[{"$nulls":4},"Dons manuels, mécénat",{"$f":"'1- Tableau financier adapté'!F9","v":0},{"$f":"'1- Tableau financier adapté'!G9","v":0},{"$error":"#DIV/0!"}]
["66 – Charges financières",{"$nulls":3},"76 – Produits financiers"]
["67- Charges exceptionnelles",{"$f":"'1- Tableau financier adapté'!B26","v":0},{"$f":"'1- Tableau financier adapté'!C26","v":0},{"$f":"C33/B33*100","v":{"$error":"#DIV/0!"}},"77- Produits exceptionnels",{"$f":"'1- Tableau financier adapté'!F22","v":0},{"$f":"'1- Tableau financier adapté'!G22","v":0},{"$error":"#DIV/0!"}]
["68 – Dotation aux amortissements",{"$nulls":3},"78 – Reports ressources non utilisées d'opérations antérieures"]
["CHARGES INDIRECTES AFFECTEES A L'ACTION",{"$nulls":3},"RESSOURCES PROPRES AFFECTEES A L'ACTION"]
["Charges fixes de fonctionnement",{"$f":"'1- Tableau financier adapté'!B27","v":0},{"$f":"'1- Tableau financier adapté'!C27","v":0},{"$f":"C36/B36*100","v":{"$error":"#DIV/0!"}},"Participation budget de l'association",{"$f":"'1- Tableau financier adapté'!F24","v":0},{"$f":"'1- Tableau financier adapté'!G24","v":0},{"$f":"G36/F36*100","v":{"$error":"#DIV/0!"}}]
["Frais financiers"]
["Autres"]
["TOTAL DES CHARGES",{"$f":"B36+B37+B38+B34+B33+B32+B29+B25+B22+B17+B11+B6","v":0},{"$f":"C36+C37+C38+C34+C33+C32+C29+C25+C22+C17+C11+C6","v":0},{"$f":"C39/B39*100","v":{"$error":"#DIV/0!"}},"TOTAL DES PRODUITS",{"$f":"F6+F7+F8+F29+F32+F33+F36","v":0},{"$f":"G6+G7+G8+G29+G32+G33+G36","v":0},{"$f":"G39/F39*100","v":{"$error":"#DIV/0!"}}]
["CONTRIBUTIONS VOLONTAIRES EN NATURE"]
["86 – Emploi des contributions volontaires en nature",{"$f":"SUM(B42:B45)","v":0},{"$f":"SUM(C42:C45)","v":0},{"$f":"C41/B41*100","v":{"$error":"#DIV/0!"}},"87- Contributions volontaires en nature",{"$f":"SUM(F42:F45)","v":0},{"$f":"SUM(G42:G45)","v":0},{"$f":"G41/F41*100","v":{"$error":"#DIV/0!"}}]
[" Secours en nature",{"$f":"'1- Tableau financier adapté'!B30","v":0},{"$f":"'1- Tableau financier adapté'!C30","v":0},{"$f":"C42/B42*100","v":{"$error":"#DIV/0!"}},"Bénévolat",{"$f":"'1- Tableau financier adapté'!F30","v":0},{"$f":"'1- Tableau financier adapté'!G30","v":0},{"$f":"G42/F42*100","v":{"$error":"#DIV/0!"}}]
["Mise à disposition gratuite de biens et services",{"$f":"'1- Tableau financier adapté'!B31","v":0},{"$f":"'1- Tableau financier adapté'!C31","v":0},{"$error":"#DIV/0!"},"Prestations en nature",{"$f":"'1- Tableau financier adapté'!F31","v":0},{"$f":"'1- Tableau financier adapté'!G31","v":0},{"$error":"#DIV/0!"}]
["Prestations",{"$f":"'1- Tableau financier adapté'!B32","v":0},{"$f":"'1- Tableau financier adapté'!C32","v":0},{"$error":"#DIV/0!"},"Dons en nature",{"$f":"'1- Tableau financier adapté'!F32","v":0},{"$f":"'1- Tableau financier adapté'!G32","v":0},{"$error":"#DIV/0!"}]
["Personnel bénévole",{"$f":"'1- Tableau financier adapté'!B33","v":0},{"$f":"'1- Tableau financier adapté'!C33","v":0},{"$error":"#DIV/0!"}]
["TOTAL valorisations",{"$f":"B41","v":0},{"$f":"C41","v":0},{"$error":"#DIV/0!"},"TOTAL valorisations",{"$f":"F41","v":0},{"$f":"G41","v":0},{"$f":"G46/F46*100","v":{"$error":"#DIV/0!"}}]